fUSD/lending_fUSD_20251123
["ID","MTS","AMOUNT","RATE_DAILY","PERIOD"]
[394714499,1763911856013,-500.0,0.00038356,8]
[394714500,1763911856023,-151.0,0.00038356,31]
[394714501,1763911856032,-151.0,0.00038356,31]
[394714502,1763911856042,-500.0,0.00038356,8]
[394714503,1763911856051,-623.25,0.00038356,8]
[394714504,1763911856061,-500.0,0.00038356,8]
[394714505,1763911856072,-500.0,0.00038356,8]
[394714506,1763911856082,-399.951469,0.00038356,31]
[394714507,1763911856092,-917.85,0.00038356,8]
[394714508,1763911856103,-500.0,0.00038356,8]
[394714509,1763911856113,-500.0,0.00038356,8]
[394714510,1763911856122,-500.0,0.00038356,8]
[394714511,1763911856132,-399.951469,0.00038356,31]
[394714512,1763911856142,-1227.96,0.00038356,8]
[394714513,1763911856152,-399.951469,0.00038356,31]
[394714514,1763911856162,-500.0,0.00038356,8]
[394714515,1763911856171,-500.0,0.00038356,8]
[394714516,1763911856180,-399.951469,0.00038356,31]
[394714517,1763911856190,-500.0,0.00038356,8]
[394714518,1763911856200,-446.66630924,0.00038356,8]
[394714519,1763911856210,-1578.56,0.00038356,8]
[394714520,1763911856219,-231.29821055,0.00038356,8]
[394714521,1763911856229,-500.0,0.00038356,8]
[394714522,1763911856239,-500.0,0.00038356,8]
[394714523,1763911856249,-500.0,0.00038356,8]
[394714524,1763911856259,-506.05,0.00038356,8]
[394714525,1763911856269,-535.25892762,0.00038356,8]
[394714526,1763911856278,-500.0,0.00038356,8]
[394714527,1763911856288,-500.0,0.00038356,8]
[394714528,1763911856298,-500.0,0.00038356,8]
[394714529,1763911856308,-500.0,0.00038356,8]
[394714530,1763911856318,-151.0,0.00038356,31]
[394714531,1763911856328,-815.38,0.00038356,8]
[394714532,1763911856338,-500.0,0.00038356,8]
[394714533,1763911856348,-300.0,0.00038356,2]
[394714534,1763911856358,-500.0,0.00038356,8]
[394714535,1763911856368,-500.0,0.00038356,8]
[394714536,1763911856378,-500.0,0.00038356,8]
[394714537,1763911856388,-500.0,0.00038356,8]
[394714538,1763911856399,-500.0,0.00038356,8]
[394714539,1763911856409,-500.0,0.00038356,8]
[394714540,1763911856420,-689.51,0.00038356,8]
[394714541,1763911856430,-500.0,0.00038356,8]
[394714542,1763911856440,-500.0,0.00038356,8]
[394714543,1763911856450,-500.0,0.00038356,8]
[394714544,1763911856460,-1120.07,0.00038356,8]
[394714545,1763911856471,-500.0,0.00038356,8]
[394714546,1763911856481,-500.0,0.00038356,8]
[394714547,1763911856493,-500.0,0.00038356,8]
[394714548,1763911856503,-500.0,0.00038356,8]
[394714549,1763911856514,-500.0,0.00038356,8]
[394714550,1763911856524,-500.0,0.00038356,8]
[394714551,1763911856534,-500.0,0.00038356,8]
[394714552,1763911856548,-500.0,0.00038356,8]
[394714553,1763911856557,-500.0,0.00038356,8]
[394714554,1763911856567,-151.0,0.00038356,31]
[394714555,1763911856577,-1053.09,0.00038356,8]
[394714556,1763911856587,-4498.852729,0.00038356,31]
[394714557,1763911856597,-932.32,0.00038356,8]
[394714558,1763911856607,-500.0,0.00038356,8]
[394714559,1763911856619,-500.0,0.00038356,8]
[394714560,1763911856630,-500.0,0.00038356,8]
[394714561,1763911856640,-755.37,0.00038356,8]
[394714562,1763911856651,-4498.852729,0.00038356,31]
[394714563,1763911856660,-508.064333,0.00038356,8]
[394714564,1763911856670,-151.0,0.00038356,31]
[394714565,1763911856680,-1076.81,0.00038356,8]
[394714566,1763911856690,-151.0,0.00038356,31]
[394714567,1763911856700,-4498.852729,0.00038356,31]
[394714568,1763911856709,-500.0,0.00038356,8]
[394714569,1763911856719,-500.0,0.00038356,8]
[394714570,1763911856728,-151.0,0.00038356,31]
[394714571,1763911856738,-151.0,0.00038356,31]
[394714572,1763911856748,-500.0,0.00038356,8]
[394714573,1763911856758,-768.99,0.00038356,8]
[394714574,1763911856768,-4498.852729,0.00038356,31]
[394714575,1763911856778,-500.0,0.00038356,8]
[394714576,1763911856788,-500.0,0.00038356,8]
[394714577,1763911856798,-500.0,0.00038356,8]
[394714578,1763911856820,-500.0,0.00038356,8]
[394714579,1763911856831,-688.48,0.00038356,8]
[394714580,1763911856842,-2662.62,0.00038356,8]
[394714581,1763911856853,-632.94,0.00038356,8]
[394714582,1763911856864,-500.0,0.00038356,8]
[394714583,1763911856875,-500.0,0.00038356,8]
[394714584,1763911856885,-3162.61,0.00038356,8]
[394714585,1763911856897,-500.0,0.00038356,8]
[394714586,1763911856907,-500.0,0.00038356,8]
[394714587,1763911856918,-709.18,0.00038356,8]
[394714588,1763911856928,-1047.234041,0.00038356,31]
[394714589,1763911856940,-500.0,0.00038356,8]
[394714590,1763911856952,-500.0,0.00038356,8]
[394714591,1763911856963,-1047.234041,0.00038356,31]
[394714592,1763911856974,-500.0,0.00038356,8]
[394714593,1763911856984,-787.13,0.00038356,8]
[394714594,1763911856996,-500.0,0.00038356,8]
[394714595,1763911857008,-214.390204,0.00038356,31]
[394714596,1763911857020,-500.0,0.00038356,8]
[394714597,1763911857032,-500.0,0.00038356,8]
[394714598,1763911857043,-528.88390356,0.00038356,8]
[394714599,1763911857054,-1047.234041,0.00038356,31]
[394714600,1763911857065,-214.390204,0.00038356,31]
[394714601,1763911857076,-500.0,0.00038356,8]
[394714602,1763911857087,-500.0,0.00038356,8]
[394714603,1763911857098,-478.49091463,0.00038356,8]
[394714604,1763911857109,-500.0,0.00038356,8]
[394714605,1763911857120,-1047.234041,0.00038356,31]
[394714606,1763911857129,-500.0,0.00038356,8]
[394714607,1763911857140,-500.0,0.00038356,8]
[394714608,1763911857156,-893.73,0.00038356,8]
[394714609,1763911857167,-500.0,0.00038356,8]
[394714610,1763911857179,-500.0,0.00038356,8]
[394714611,1763911857194,-387.996038,0.00038356,31]
[394714612,1763911857205,-500.0,0.00038356,8]
[394714613,1763911857216,-500.0,0.00038356,8]
[394714614,1763911857228,-500.0,0.00038356,6]
[394714615,1763911857239,-500.0,0.00038356,8]
[394714616,1763911857250,-500.0,0.00038356,8]
[394714617,1763911857261,-616.62,0.00038356,8]
[394714618,1763911857272,-500.0,0.00038356,8]
[394714619,1763911857284,-387.996038,0.00038356,31]
[394714620,1763911857294,-500.0,0.00038356,8]
[394714621,1763911857306,-500.0,0.00038356,8]
[394714622,1763911857317,-500.0,0.00038356,8]
[394714623,1763911857327,-500.0,0.00038356,8]
[394714624,1763911857338,-159.28320273,0.00038356,8]
[394714625,1763911857350,-500.0,0.00038356,8]
[394714626,1763911857361,-500.0,0.00038356,8]
[394714627,1763911857371,-387.996038,0.00038356,31]
[394714628,1763911857381,-500.0,0.00038356,8]
[394714629,1763911857392,-237.72054505,0.00038356,8]
[394714630,1763911857403,-500.0,0.00038356,8]
[394714631,1763911857415,-214.390204,0.00038356,31]
[394714632,1763911857426,-387.996038,0.00038356,31]
[394714633,1763911857439,-500.0,0.00038356,8]
[394714634,1763911857450,-500.0,0.00038356,8]
[394714635,1763911857461,-1421.74,0.00038356,8]
[394714636,1763911857471,-500.0,0.00038356,8]
[394714637,1763911857482,-214.390204,0.00038356,31]
[394714638,1763911857492,-500.0,0.00038356,8]
[394714639,1763911857503,-500.0,0.00038356,8]
[394714640,1763911857518,-500.0,0.00038356,8]
[394714641,1763911857529,-500.0,0.00038356,8]
[394714642,1763911857544,-559.9,0.00038356,8]
[394714643,1763911857554,-500.0,0.00038356,8]
[394714644,1763911857566,-500.0,0.00038356,8]
[394714645,1763911857578,-500.0,0.00038356,8]
[394714646,1763911857589,-500.0,0.00038356,8]
[394714647,1763911857600,-889.77,0.00038356,8]
[394714648,1763911857611,-500.0,0.00038356,8]
[394714649,1763911857626,-500.0,0.00038356,8]
[394714650,1763911857637,-500.0,0.00038356,8]
[394714651,1763911857650,-500.0,0.00038356,8]
[394714652,1763911857663,-1820.13,0.00038356,8]
[394714653,1763911858030,-500.0,0.00038356,8]
[394714654,1763911858058,-500.0,0.00038356,8]
[394714655,1763911858069,-500.43452298,0.00038356,8]
[394714656,1763911858079,-500.0,0.00038356,8]
[394714657,1763911858089,-637.05,0.00038356,8]
[394714658,1763911858099,-500.0,0.00038356,8]
[394714659,1763911858109,-151.0,0.00038356,31]
[394714660,1763911858118,-500.0,0.00038356,8]
[394714661,1763911858128,-500.0,0.00038356,8]
[394714662,1763911858138,-500.0,0.00038356,8]
[394714663,1763911858147,-151.0,0.00038356,31]
[394714664,1763911858157,-151.0,0.00038356,31]
[394714665,1763911858167,-962.79,0.00038356,8]
[394714666,1763911858176,-500.0,0.00038356,8]
[394714667,1763911858189,-500.0,0.00038356,8]
[394714668,1763911858199,-500.0,0.00038356,8]
[394714669,1763911858209,-500.0,0.00038356,8]
[394714670,1763911858219,-500.0,0.00038356,8]
[394714671,1763911858228,-500.0,0.00038356,8]
[394714672,1763911858238,-500.0,0.00038356,8]
[394714673,1763911858248,-711.32,0.00038356,8]
[394714674,1763911858257,-500.0,0.00038356,8]
[394714675,1763911858267,-500.0,0.00038356,8]
[394714676,1763911858276,-1485.9,0.00038356,8]
[394714677,1763911858286,-500.0,0.00038356,8]
[394714678,1763911858295,-500.0,0.00038356,8]
[394714679,1763911858305,-703.04,0.00038356,8]
[394714680,1763911858314,-500.0,0.00038356,8]
[394714681,1763911858323,-500.0,0.00038356,8]
[394714682,1763911858333,-500.0,0.00038356,8]
[394714683,1763911858342,-500.0,0.00038356,8]
[394714684,1763911858352,-500.0,0.00038356,8]
[394714685,1763911858361,-500.0,0.00038356,8]
[394714686,1763911858371,-151.0,0.00038356,31]
[394714687,1763911858380,-1056.52,0.00038356,8]
[394714688,1763911858390,-500.0,0.00038356,8]
[394714689,1763911858399,-500.0,0.00038356,8]
[394714690,1763911858408,-500.0,0.00038356,8]
[394714691,1763911858418,-500.0,0.00038356,8]
[394714692,1763911858428,-1133.46,0.00038356,8]
[394714693,1763911858438,-500.0,0.00038356,8]
[394714694,1763911858448,-514.92,0.00038356,8]
[394714695,1763911858458,-299.71064371,0.00038356,8]
[394714696,1763911858468,-151.0,0.00038356,31]
[394714697,1763911858478,-1212.1,0.00038356,8]
[394714698,1763911858487,-500.0,0.00038356,8]
[394714699,1763911858498,-500.0,0.00038356,8]
[394714700,1763911858507,-1855.97,0.00038356,8]
[394714701,1763911858517,-820.94,0.00038356,8]
[394714702,1763911858527,-1009.33610382,0.00038356,7]
[394714703,1763911858538,-564.77,0.00038356,8]
[394714704,1763911858550,-635.44,0.00038356,8]
[394714705,1763911858559,-3602.63443574,0.00038356,2]
[394714707,1763911859263,-834.520844,0.00038099,31]
[394714708,1763911859273,-36.869156,0.00038356,2]
[394714709,1763911860600,-609.0,0.00028691,2]
[394714710,1763911860610,-834.520844,0.00038099,31]
[394714711,1763911860621,-840.87067624,0.00038256,2]
[394714712,1763911860630,-1539.29532826,0.00038356,2]
[394714713,1763911860640,-500.0,0.00038356,8]
[394714714,1763911860650,-500.0,0.00038356,8]
[394714715,1763911860664,-841.02,0.00038356,8]
[394714716,1763911860673,-504.58,0.00038356,8]
[394714717,1763911860684,-151.0,0.00038356,31]
[394714718,1763911860694,-151.0,0.00038356,31]
[394714719,1763911860704,-500.0,0.00038356,8]
[394714720,1763911860714,-2482.04,0.00038356,8]
[394714721,1763911860724,-565.43,0.00038356,8]
[394714722,1763911860734,-500.0,0.00038356,8]
[394714723,1763911860743,-151.0,0.00038356,31]
[394714724,1763911860753,-500.0,0.00038356,8]
[394714725,1763911860763,-500.0,0.00038356,8]
[394714726,1763911860773,-500.0,0.00038356,120]
[394714727,1763911860783,-151.0,0.00038356,31]
[394714728,1763911860793,-606.22,0.00038356,8]
[394714729,1763911860802,-180.93710657,0.00038356,8]
[394714730,1763911861006,-319.06289343,0.00038356,8]
[394714731,1763911861017,-500.0,0.00038356,8]
[394714732,1763911861026,-1398.49,0.00038356,8]
[394714733,1763911861036,-151.0,0.00038356,31]
[394714734,1763911861045,-514.46,0.00038356,8]
[394714735,1763911861058,-812.56,0.00038356,8]
[394714736,1763911861070,-500.0,0.00038356,8]
[394714737,1763911861080,-83.18205657,0.00038356,31]
[394714738,1763911861096,-67.81794343,0.00038356,31]
[394714739,1763911861105,-304.91652,0.00038356,30]
[394714740,1763911861114,-197.31114064,0.00038356,8]
[394714741,1763911861124,-500.0,0.00038356,8]
[394714742,1763911861134,-640.38884253,0.00038356,8]
[394714743,1763911861143,-217.14538,0.00038356,31]
[394714744,1763911861152,-304.91652,0.00038356,30]
[394714745,1763911861162,-500.0,0.00038356,8]
[394714746,1763911861173,-500.0,0.00038356,8]
[394714747,1763911861184,-151.0,0.00038356,31]
[394714748,1763911861195,-217.14538,0.00038356,31]
[394714749,1763911861206,-500.0,0.00038356,8]
[394714750,1763911861217,-504.68029361,0.00038356,8]
[394714751,1763911861227,-304.91652,0.00038356,30]
[394714752,1763911861237,-1272.48,0.00038356,8]
[394714753,1763911861247,-500.0,0.00038356,8]
[394714754,1763911861257,-304.91652,0.00038356,30]
[394714755,1763911861266,-500.0,0.00038356,8]
[394714756,1763911861276,-500.0,0.00038356,8]
[394714757,1763911861286,-500.0,0.00038356,8]
[394714758,1763911861295,-1436.32,0.00038356,8]
[394714759,1763911861305,-1177.21,0.00038356,8]
[394714760,1763911861314,-217.14538,0.00038356,31]
[394714761,1763911861324,-500.0,0.00038356,8]
[394714762,1763911861333,-217.14538,0.00038356,31]
[394714763,1763911861343,-172.234859,0.00038356,31]
[394714764,1763911861352,-500.0,0.00038356,8]
[394714765,1763911861362,-500.0,0.00038356,8]
[394714766,1763911861371,-500.0,0.00038356,8]
[394714767,1763911861380,-1987.62,0.00038356,8]
[394714768,1763911861390,-500.0,0.00038356,8]
[394714769,1763911861400,-172.234859,0.00038356,31]
[394714770,1763911861410,-500.0,0.00038356,8]
[394714771,1763911861419,-500.0,0.00038356,8]
[394714772,1763911861428,-500.0,0.00038356,8]
[394714773,1763911861439,-500.0,0.00038356,8]
[394714774,1763911861449,-547.29,0.00038356,8]
[394714775,1763911861463,-151.0,0.00038356,31]
[394714776,1763911861472,-172.234859,0.00038356,31]
[394714777,1763911861481,-500.0,0.00038356,8]
[394714778,1763911861491,-500.0,0.00038356,8]
[394714779,1763911861500,-500.0,0.00038356,8]
[394714780,1763911861511,-500.0,0.00038356,8]
[394714781,1763911861521,-172.234859,0.00038356,31]
[394714782,1763911861530,-641.81780181,0.00038356,8]
[394714783,1763911861542,-500.0,0.00038356,8]
[394714784,1763911861551,-500.0,0.00038356,8]
[394714785,1763911861561,-500.0,0.00038356,8]
[394714786,1763911861571,-500.0,0.00038356,8]
[394714787,1763911861580,-838.76,0.00038356,8]
[394714788,1763911861590,-500.0,0.00038356,8]
[394714789,1763911861599,-500.0,0.00038356,8]
[394714790,1763911861609,-500.0,0.00038356,8]
[394714791,1763911861620,-500.0,0.00038356,8]
[394714792,1763911861631,-500.0,0.00038356,8]
[394714793,1763911861641,-500.0,0.00038356,8]
[394714794,1763911861651,-500.0,0.00038356,8]
[394714795,1763911861661,-732.46,0.00038356,8]
[394714796,1763911861670,-269.86940979,0.00038356,8]
[394714797,1763911861680,-500.0,0.00038356,8]
[394714798,1763911861692,-563.62478597,0.00038356,8]
[394714799,1763911861702,-1354.73,0.00038356,8]
[394714800,1763911861711,-151.0,0.00038356,31]
[394714801,1763911861720,-500.0,0.00038356,8]
[394714802,1763911861730,-500.0,0.00038356,8]
[394714803,1763911861740,-500.0,0.00038356,8]
[394714804,1763911861750,-500.0,0.00038356,8]
[394714805,1763911861759,-1271.22,0.00038356,8]
[394714806,1763911861770,-500.0,0.00038356,8]
[394714807,1763911861779,-500.0,0.00038356,8]
[394714808,1763911861789,-500.0,0.00038356,8]
[394714809,1763911861798,-856.67,0.00038356,8]
[394714810,1763911861808,-500.0,0.00038356,8]
[394714811,1763911861818,-500.0,0.00038356,8]
[394714812,1763911861828,-500.0,0.00038356,8]
[394714813,1763911861837,-500.0,0.00038356,8]
[394714814,1763911861847,-151.0,0.00038356,7]
[394714815,1763911861856,-650.3,0.00038356,8]
[394714816,1763911861866,-1247.0,0.00038356,7]
[394714817,1763911861875,-151.0,0.00038356,7]
[394714818,1763911861885,-151.0,0.00038356,7]
[394714819,1763911861894,-151.0,0.00038356,31]
[394714820,1763911861904,-2469.78,0.00038356,8]
[394714821,1763911861914,-579.41567093,0.00038356,8]
[394714822,1763911861925,-500.0,0.00038356,8]
[394714823,1763911861934,-500.0,0.00038356,8]
[394714824,1763911861943,-500.0,0.00038356,8]
[394714825,1763911861953,-500.0,0.00038356,8]
[394714826,1763911861963,-500.0,0.00038356,8]
[394714827,1763911861973,-151.0,0.00038356,31]
[394714828,1763911861983,-500.0,0.00038356,8]
[394714829,1763911861992,-816.3,0.00038356,8]
[394714830,1763911862002,-548.08959075,0.00038356,8]
[394714831,1763911862011,-500.0,0.00038356,8]
[394714832,1763911862024,-500.0,0.00038356,8]
[394714833,1763911862034,-500.0,0.00038356,8]
[394714834,1763911862044,-500.0,0.00038356,8]
[394714835,1763911862055,-500.0,0.00038356,8]
[394714836,1763911862065,-151.0,0.00038356,7]
[394714837,1763911862075,-187.449811,0.00038356,31]
[394714838,1763911862085,-500.0,0.00038356,8]
[394714839,1763911862095,-895.22,0.00038356,8]
[394714840,1763911862105,-500.0,0.00038356,8]
[394714841,1763911862114,-300.0,0.00038356,8]
[394714842,1763911862124,-187.449811,0.00038356,31]
[394714843,1763911862134,-500.0,0.00038356,8]
[394714844,1763911862143,-187.449811,0.00038356,31]
[394714845,1763911862153,-500.0,0.00038356,8]
[394714846,1763911862162,-625.75,0.00038356,8]
[394714847,1763911862171,-500.0,0.00038356,2]
[394714848,1763911862181,-151.0,0.00038356,31]
[394714849,1763911862192,-500.0,0.00038356,8]
[394714850,1763911862201,-500.0,0.00038356,8]
[394714851,1763911862211,-500.0,0.00038356,8]
[394714852,1763911862220,-500.0,0.00038356,8]
[394714853,1763911862230,-510.87196578,0.00038356,8]
[394714854,1763911862240,-151.0,0.00038356,31]
[394714855,1763911862249,-151.0,0.00038356,31]
[394714856,1763911862259,-500.0,0.00038356,8]
[394714857,1763911862269,-500.0,0.00038356,8]
[394714858,1763911862279,-500.0,0.00038356,8]
[394714859,1763911862288,-500.0,0.00038356,8]
[394714860,1763911862299,-500.0,0.00038356,8]
[394714861,1763911862309,-151.0,0.00038356,31]
[394714862,1763911862319,-500.0,0.00038356,8]
[394714863,1763911862329,-500.0,0.00038356,8]
[394714864,1763911862339,-500.0,0.00038356,8]
[394714865,1763911862349,-570.56008556,0.00038356,8]
[394714866,1763911862359,-500.0,0.00038356,8]
[394714867,1763911862368,-500.0,0.00038356,8]
[394714868,1763911862378,-151.0,0.00038356,31]
[394714869,1763911862388,-151.0,0.00038356,31]
[394714870,1763911862397,-627.77621067,0.00038356,8]
[394714871,1763911862407,-500.0,0.00038356,8]
[394714872,1763911862417,-834.520844,0.00038356,31]
[394714873,1763911862427,-180.20541073,0.00038356,8]
[394714874,1763911862438,-500.0,0.00038356,8]
[394714875,1763911862448,-500.0,0.00038356,8]
[394714876,1763911862459,-353.82593894,0.00038356,8]
[394714877,1763911862469,-500.0,0.00038356,8]
[394714878,1763911862480,-162.238071,0.00038356,31]
[394714879,1763911862492,-500.0,0.00038356,8]
[394714880,1763911862503,-500.0,0.00038356,8]
[394714881,1763911862514,-885.58,0.00038356,8]
[394714882,1763911862524,-873.420392,0.00038356,8]
[394714883,1763911862536,-187.449811,0.00038356,31]
[394714884,1763911862552,-834.520844,0.00038356,31]
[394714885,1763911862563,-500.0,0.00038356,8]
[394714886,1763911862574,-500.0,0.00038356,8]
[394714887,1763911862585,-500.0,0.00038356,8]
[394714888,1763911862597,-500.0,0.00038356,8]
[394714889,1763911862607,-500.0,0.00038356,8]
[394714890,1763911862619,-500.0,0.00038356,8]
[394714891,1763911862630,-151.0,0.00038356,31]
[394714892,1763911862641,-500.0,0.00038356,8]
[394714893,1763911862651,-644.61768678,0.00038356,8]
[394714894,1763911862661,-500.0,0.00038356,8]
[394714895,1763911862672,-834.520844,0.00038356,31]
[394714896,1763911862682,-500.0,0.00038356,8]
[394714897,1763911862698,-500.0,0.00038356,8]
[394714898,1763911862709,-500.0,0.00038356,8]
[394714899,1763911862719,-500.0,0.00038356,8]
[394714900,1763911862728,-500.0,0.00038356,8]
[394714901,1763911862738,-834.520844,0.00038356,31]
[394714902,1763911862748,-500.0,0.00038356,8]
[394714903,1763911862758,-500.0,0.00038356,8]
[394714904,1763911862769,-500.0,0.00038356,8]
[394714905,1763911862778,-500.0,0.00038356,8]
[394714906,1763911862789,-500.0,0.00038356,8]
[394714907,1763911862810,-500.0,0.00038356,8]
[394714908,1763911862822,-500.0,0.00038356,8]
[394714909,1763911862832,-1221.57,0.00038356,8]
[394714910,1763911862842,-500.0,0.00038356,8]
[394714911,1763911862853,-500.0,0.00038356,8]
[394714912,1763911862863,-500.0,0.00038356,8]
[394714913,1763911862873,-500.0,0.00038356,8]
[394714914,1763911862883,-626.87,0.00038356,8]
[394714915,1763911862894,-500.0,0.00038356,8]
[394714916,1763911862905,-534.06059349,0.00038356,8]
[394714917,1763911862915,-500.0,0.00038356,8]
[394714918,1763911862925,-500.0,0.00038356,8]
[394714919,1763911862936,-500.0,0.00038356,8]
[394714920,1763911862946,-363.27504788,0.00038356,2]
[394714921,1763911862957,-5178.79892,0.0003836,2]
[394714922,1763911862967,-500.0,0.00038373,5]
[394714923,1763911862977,-500.0,0.00038373,5]
[394714924,1763911862987,-500.0,0.00038373,5]
[394714925,1763911862998,-500.0,0.00038373,5]
[394714926,1763911863008,-500.0,0.00038373,5]
[394714927,1763911863018,-499.43088055,0.00038373,5]
[394714928,1763911863028,-151.39178617,0.00038373,5]
[394714929,1763911863038,-491.34674196,0.0003853,2]
[394714930,1763911863048,-10162.23948504,0.0003853,2]
[394714931,1763911863058,-439.026281,0.000386,2]
[394714932,1763911863068,-160.03,0.000386,30]
[394714933,1763911863078,-1927.0,0.00038621,5]
[394714934,1763911863088,-1201.31606025,0.00038629,30]
[394714935,1763911863097,-586.19,0.00038629,7]
[394714936,1763911863107,-586.19,0.00038629,7]
[394714937,1763911863116,-500.0,0.00038629,8]
[394714938,1763911863126,-500.0,0.00038629,8]
[394714939,1763911863136,-500.0,0.00038629,2]
[394714940,1763911863146,-500.0,0.00038629,2]
[394714941,1763911863156,-300.0,0.00038629,10]
[394714942,1763911863167,-400.0,0.0003863,8]
[394714943,1763911863178,-502.38148011,0.0003863,8]
[394714944,1763911863190,-500.0,0.0003863,8]
[394714945,1763911863201,-500.0,0.0003863,8]
[394714946,1763911863211,-500.0,0.0003863,8]
[394714947,1763911863221,-500.0,0.0003863,8]
[394714948,1763911863231,-500.0,0.0003863,8]
[394714949,1763911863242,-500.0,0.0003863,8]
[394714950,1763911863252,-500.0,0.0003863,8]
[394714951,1763911863262,-500.0,0.0003863,8]
[394714952,1763911863271,-500.0,0.0003863,2]
[394714953,1763911863282,-500.0,0.0003863,8]
[394714954,1763911863292,-500.0,0.0003863,8]
[394714955,1763911863301,-500.0,0.0003863,8]
[394714956,1763911863311,-500.0,0.0003863,8]
[394714957,1763911863321,-500.0,0.0003863,8]
[394714958,1763911863331,-500.0,0.0003863,8]
[394714959,1763911863342,-500.0,0.0003863,8]
[394714960,1763911863352,-508.31184443,0.0003863,8]
[394714961,1763911863362,-500.0,0.0003863,8]
[394714962,1763911863373,-625.5,0.0003863,8]
[394714963,1763911863383,-500.0,0.0003863,8]
[394714964,1763911863393,-500.0,0.0003863,8]
[394714965,1763911863404,-500.0,0.0003863,8]
[394714966,1763911863415,-500.0,0.0003863,8]
[394714967,1763911863426,-434.80490402,0.0003863,8]
[394714968,1763911863436,-500.0,0.0003863,8]
[394714969,1763911863448,-500.0,0.0003863,8]
[394714970,1763911863459,-500.0,0.0003863,8]
[394714971,1763911863470,-500.0,0.0003863,8]
[394714972,1763911863482,-500.0,0.0003863,8]
[394714973,1763911863493,-639.03,0.0003863,8]
[394714974,1763911863505,-500.0,0.0003863,8]
[394714975,1763911863516,-500.0,0.0003863,8]
[394714976,1763911863528,-500.0,0.0003863,8]
[394714977,1763911863540,-500.0,0.0003863,8]
[394714978,1763911863555,-500.0,0.0003863,8]
[394714979,1763911863566,-500.0,0.0003863,8]
[394714980,1763911863576,-539.42,0.0003863,8]
[394714981,1763911863588,-505.41142916,0.0003863,8]
[394714982,1763911863598,-500.0,0.0003863,10]
[394714983,1763911863609,-500.0,0.0003863,8]
[394714984,1763911863623,-500.0,0.0003863,8]
[394714985,1763911863635,-500.0,0.0003863,8]
[394714986,1763911863646,-500.0,0.0003863,8]
[394714987,1763911863659,-500.0,0.0003863,8]
[394714988,1763911863670,-500.0,0.0003863,8]
[394714989,1763911863681,-500.0,0.0003863,8]
[394714990,1763911863695,-500.0,0.0003863,8]
[394714991,1763911863706,-690.48,0.0003863,8]
[394714992,1763911863716,-723.48,0.0003863,8]
[394714993,1763911863727,-500.0,0.0003863,8]
[394714994,1763911863738,-500.0,0.0003863,8]
[394714995,1763911863755,-500.0,0.0003863,8]
[394714996,1763911863766,-354.14482448,0.0003863,8]
[394714997,1763911863777,-500.0,0.0003863,8]
[394714998,1763911863788,-923.02,0.0003863,8]
[394714999,1763911863800,-500.0,0.0003863,8]